{"text_format":"3","workbook":"xlsx","n_sheets":2,"sheets":["Début","Planificateur de budget fêtes"],"not_rendered":{"defined_names":1},"read":"whole","date_system":"1900"}

{"sheet":"Début","index":0,"n_rows":7,"n_cols":2,"rows_kept":7}
[null,"À PROPOS DE CE MODÈLE"]
[null,"Suivez vos dépenses avec ce Planificateur de budget fêtes."]
[null,"Entrez les dépenses Budget et réel consacrées aux différents postes dans les tableaux."]
[null,"Les valeurs Budget fêtes, Total réellement dépensé et Écart sont calculées automatiquement."]
[null,"Remarque : "]
[null,"Des instructions supplémentaires sont disponibles dans la colonne A de la feuille de calcul PLANIFICATEUR DE BUDGET FÊTES. Ce texte a été intentionnellement masqué. Pour supprimer le texte, sélectionnez la colonne A et choisissez SUPPRIMER. Pour afficher le texte, sélectionnez la colonne A et changez la couleur de la police."]
[null,"Pour en savoir plus sur un tableau, appuyez sur MAJ, puis F10 à l’intérieur du tableau, sélectionnez l’option TABLE puis choisissez TEXTE DE REMPLACEMENT."]

{"sheet":"Planificateur de budget fêtes","index":1,"n_rows":32,"n_cols":12,"rows_kept":32,"merged":[[1,1,5,4],[2,8,2,9],[3,8,3,9],[4,8,4,9],[6,1,6,4],[6,8,6,11],[15,1,15,4],[15,8,15,11],[25,1,25,4],[25,8,25,11]]}
["Entrez les dépenses budgét et réel pour chaque catégorie dans les tableaux correspondants de cette feuille de calcul. Des instructions utiles sur l’utilisation de cette feuille de calcul sont disponibles dans les cellules de cette colonne. Appuyez sur la flèche Bas pour commencer. "]
["Le titre de cette feuille de calcul figure dans la cellule à droite.","Planificateur de budget fêtes"]
["Le budget fêtes est calculé automatiquement dans la cellule K3.",{"$nulls":7},"BUDGET FÊTES",null,{"$f":"SUM(Cadeaux[Budget],Emballage[Budget],(Voyage[Budget],(Repas[Budget],(Loisirs[Budget],Divers[Budget]))))","v":{"v":750,"d":"750.00 €"}}]
["Les dépenses réelles sont calculées automatiquement dans la cellule K4.",{"$nulls":7},"DÉPENSES RÉELLES",null,{"$f":"SUM((Cadeaux[Réel],(Emballage[Réel],(Voyage[Réel],(Repas[Réel],(Loisirs[Réel],(Divers[Réel])))))))","v":{"v":820,"d":"820.00 €"}}]
["L’écart est calculé automatiquement dans la cellule K5. L’instruction suivante figure dans la cellule A7.",{"$nulls":7},"ÉCART (positif/négatif par rapport au budget)",null,{"$f":"SUM(K3-K4)","v":{"v":-70,"d":"-70.00 €"}}]
[]
["L’étiquette Cadeaux figure dans la cellule à droite, et l’étiquette Repas dans la cellule I7.","Cadeaux",{"$nulls":6},"Repas"]
["Entrez les dépenses consacrées aux cadeaux dans le tableau commençant à la cellule à droite, et celles consacrées aux repas dans le tableau commençant à la cellule I8. L’instruction suivante figure dans la cellule A16.","Poste","Budget","Réel","Écart",{"$nulls":3},"Poste","Budget","Réel","Écart"]
[null,"Famille",{"v":500,"d":"500.00 €"},{"v":495,"d":"495.00 €"},{"$f":"Cadeaux[[#This Row],[Budget]]-Cadeaux[[#This Row],[Réel]]","v":{"v":5,"d":"5.00 €"}},{"$nulls":3},"Provisions",null,null,{"$f":"Repas[[#This Row],[Budget]]-Repas[[#This Row],[Réel]]","v":{"v":0,"d":"0.00 €"}}]
[null,"Amis",{"v":250,"d":"250.00 €"},{"v":325,"d":"325.00 €"},{"$f":"Cadeaux[[#This Row],[Budget]]-Cadeaux[[#This Row],[Réel]]","v":{"v":-75,"d":"-75.00 €"}},{"$nulls":3},"Boissons alcoolisées",null,null,{"$f":"Repas[[#This Row],[Budget]]-Repas[[#This Row],[Réel]]","v":{"v":0,"d":"0.00 €"}}]
[null,"Collègues",null,null,{"$f":"Cadeaux[[#This Row],[Budget]]-Cadeaux[[#This Row],[Réel]]","v":{"v":0,"d":"0.00 €"}},{"$nulls":3},"Décorations",null,null,{"$f":"Repas[[#This Row],[Budget]]-Repas[[#This Row],[Réel]]","v":{"v":0,"d":"0.00 €"}}]
[null,"Enseignants, nounou, baby-sitter, etc.",null,null,{"$f":"Cadeaux[[#This Row],[Budget]]-Cadeaux[[#This Row],[Réel]]","v":{"v":0,"d":"0.00 €"}},{"$nulls":3},"Autres (tabulez dans la dernière colonne de cette ligne pour ajouter une ligne)",null,null,{"$f":"Repas[[#This Row],[Budget]]-Repas[[#This Row],[Réel]]","v":{"v":0,"d":"0.00 €"}}]
[null,"Dons de bienfaisance",null,null,{"$f":"Cadeaux[[#This Row],[Budget]]-Cadeaux[[#This Row],[Réel]]","v":{"v":0,"d":"0.00 €"}},{"$nulls":3},"Total",{"$f":"SUBTOTAL(109,Repas[Budget])","v":{"v":0,"d":"0.00 €"}},{"$f":"SUBTOTAL(109,Repas[Réel])","v":{"v":0,"d":"0.00 €"}},{"$f":"SUBTOTAL(109,Repas[Écart])","v":{"v":0,"d":"0.00 €"}}]
[null,"Autres (tabulez dans la dernière colonne de cette ligne pour ajouter une ligne)",null,null,{"$f":"Cadeaux[[#This Row],[Budget]]-Cadeaux[[#This Row],[Réel]]","v":{"v":0,"d":"0.00 €"}}]
[null,"Total",{"$f":"SUBTOTAL(109,Cadeaux[Budget])","v":{"v":750,"d":"750.00 €"}},{"$f":"SUBTOTAL(109,Cadeaux[Réel])","v":{"v":820,"d":"820.00 €"}},{"$f":"SUBTOTAL(109,Cadeaux[Écart])","v":{"v":-70,"d":"-70.00 €"}}]
["L’étiquette Emballage figure dans la cellule à droite, et l’étiquette Loisirs dans la cellule I16.","Emballage",{"$nulls":6},"Loisirs"]
["Entrez les dépenses consacrées à l’emballage dans le tableau commençant à la cellule à droite, et celles consacrées aux loisirs dans le tableau commençant à la cellule I17. L’instruction suivante figure dans la cellule A26.","Poste","Budget","Réel","Écart",{"$nulls":3},"Poste","Budget","Réel","Écart"]
[null,"Papier cadeau",null,null,{"$f":"Emballage[[#This Row],[Budget]]-Emballage[[#This Row],[Réel]]","v":{"v":0,"d":"0.00 €"}},{"$nulls":3},"Aide au service (barman, traiteur, etc.)",null,null,{"$f":"Loisirs[[#This Row],[Budget]]-Loisirs[[#This Row],[Réel]]","v":{"v":0,"d":"0.00 €"}}]
[null,"Étiquettes",null,null,{"$f":"Emballage[[#This Row],[Budget]]-Emballage[[#This Row],[Réel]]","v":{"v":0,"d":"0.00 €"}},{"$nulls":3},"Décorations",null,null,{"$f":"Loisirs[[#This Row],[Budget]]-Loisirs[[#This Row],[Réel]]","v":{"v":0,"d":"0.00 €"}}]
[null,"Fournitures (ruban, papier collant, etc.)",null,null,{"$f":"Emballage[[#This Row],[Budget]]-Emballage[[#This Row],[Réel]]","v":{"v":0,"d":"0.00 €"}},{"$nulls":3},"Nourriture et boissons",null,null,{"$f":"Loisirs[[#This Row],[Budget]]-Loisirs[[#This Row],[Réel]]","v":{"v":0,"d":"0.00 €"}}]
[null,"Boîtes",null,null,{"$f":"Emballage[[#This Row],[Budget]]-Emballage[[#This Row],[Réel]]","v":{"v":0,"d":"0.00 €"}},{"$nulls":3},"Habillement",null,null,{"$f":"Loisirs[[#This Row],[Budget]]-Loisirs[[#This Row],[Réel]]","v":{"v":0,"d":"0.00 €"}}]
[null,"Affranchissement",null,null,{"$f":"Emballage[[#This Row],[Budget]]-Emballage[[#This Row],[Réel]]","v":{"v":0,"d":"0.00 €"}},{"$nulls":3},"Billets",null,null,{"$f":"Loisirs[[#This Row],[Budget]]-Loisirs[[#This Row],[Réel]]","v":{"v":0,"d":"0.00 €"}}]
[null,"Autres (tabulez dans la dernière colonne de cette ligne pour ajouter une ligne)",null,null,{"$f":"Emballage[[#This Row],[Budget]]-Emballage[[#This Row],[Réel]]","v":{"v":0,"d":"0.00 €"}},{"$nulls":3},"Repas à l’extérieur",null,null,{"$f":"Loisirs[[#This Row],[Budget]]-Loisirs[[#This Row],[Réel]]","v":{"v":0,"d":"0.00 €"}}]
[null,"Total",{"$f":"SUBTOTAL(109,Emballage[Budget])","v":{"v":0,"d":"0.00 €"}},{"$f":"SUBTOTAL(109,Emballage[Réel])","v":{"v":0,"d":"0.00 €"}},{"$f":"SUBTOTAL(109,Emballage[Écart])","v":{"v":0,"d":"0.00 €"}},{"$nulls":3},"Autres (tabulez dans la dernière colonne de cette ligne pour ajouter une ligne)",null,null,{"$f":"Loisirs[[#This Row],[Budget]]-Loisirs[[#This Row],[Réel]]","v":{"v":0,"d":"0.00 €"}}]
[{"$nulls":8},"Total",{"$f":"SUBTOTAL(109,Loisirs[Budget])","v":{"v":0,"d":"0.00 €"}},{"$f":"SUBTOTAL(109,Loisirs[Réel])","v":{"v":0,"d":"0.00 €"}},{"$f":"SUBTOTAL(109,Loisirs[Écart])","v":{"v":0,"d":"0.00 €"}}]
["L’étiquette Voyage figure dans la cellule à droite, et l’étiquette Divers dans la cellule I26.","Voyage",{"$nulls":6},"Divers"]
["Entrez les dépenses consacrées au voyage dans le tableau commençant à la cellule à droite, et les dépenses divers dans le tableau commençant à la cellule I27.","Poste","Budget","Réel","Écart",{"$nulls":3},"Poste","Budget","Réel","Écart"]
[null,"Avion",null,null,{"$f":"Voyage[[#This Row],[Budget]]-Voyage[[#This Row],[Réel]]","v":{"v":0,"d":"0.00 €"}},{"$nulls":3},"Photos",null,null,{"$f":"Divers[[#This Row],[Budget]]-Divers[[#This Row],[Réel]]","v":{"v":0,"d":"0.00 €"}}]
[null,"Hébergement",null,null,{"$f":"Voyage[[#This Row],[Budget]]-Voyage[[#This Row],[Réel]]","v":{"v":0,"d":"0.00 €"}},{"$nulls":3},"Essence ",null,null,{"$f":"Divers[[#This Row],[Budget]]-Divers[[#This Row],[Réel]]","v":{"v":0,"d":"0.00 €"}}]
[null,"Transports",null,null,{"$f":"Voyage[[#This Row],[Budget]]-Voyage[[#This Row],[Réel]]","v":{"v":0,"d":"0.00 €"}},{"$nulls":3},"Autres (tabulez dans la dernière colonne de cette ligne pour ajouter une ligne)",null,null,{"$f":"Divers[[#This Row],[Budget]]-Divers[[#This Row],[Réel]]","v":{"v":0,"d":"0.00 €"}}]
[null,"Autres (tabulez dans la dernière colonne de cette ligne pour ajouter une ligne)",null,null,{"$f":"Voyage[[#This Row],[Budget]]-Voyage[[#This Row],[Réel]]","v":{"v":0,"d":"0.00 €"}},{"$nulls":3},"Total",{"$f":"SUBTOTAL(109,Divers[Budget])","v":{"v":0,"d":"0.00 €"}},{"$f":"SUBTOTAL(109,Divers[Réel])","v":{"v":0,"d":"0.00 €"}},{"$f":"SUBTOTAL(109,Divers[Écart])","v":{"v":0,"d":"0.00 €"}}]
[null,"Total",{"$f":"SUBTOTAL(109,Voyage[Budget])","v":{"v":0,"d":"0.00 €"}},{"$f":"SUBTOTAL(109,Voyage[Réel])","v":{"v":0,"d":"0.00 €"}},{"$f":"SUBTOTAL(109,Voyage[Écart])","v":{"v":0,"d":"0.00 €"}}]